lending/lending_fUSD_20240507
["ID","MTS","AMOUNT","RATE_DAILY","PERIOD"]
[326569341,1715112645955,-500.0,0.00019726,2]
[326569342,1715112645966,-592.34,0.00019726,2]
[326569343,1715112645976,-500.0,0.00019726,2]
[326569344,1715112645987,-500.0,0.00019726,2]
[326569345,1715112645997,-547.6,0.00019726,2]
[326569346,1715112646008,-545.86,0.00019726,2]
[326569347,1715112646019,-500.0,0.00019726,2]
[326569348,1715112646030,-500.0,0.00019726,2]
[326569349,1715112646041,-500.0,0.00019726,2]
[326569350,1715112646051,-500.0,0.00019726,2]
[326569351,1715112646062,-500.0,0.00019726,2]
[326569352,1715112646072,-500.0,0.00019726,2]
[326569353,1715112646082,-500.0,0.00019726,2]
[326569354,1715112646093,-500.0,0.00019726,2]
[326569355,1715112646108,-581.29,0.00019726,2]
[326569358,1715112646121,-520.45,0.00019726,2]
[326569360,1715112646132,-500.0,0.00019726,2]
[326569362,1715112646142,-500.0,0.00019726,2]
[326569364,1715112646153,-653.99,0.00019726,2]
[326569365,1715112646163,-500.0,0.00019726,2]
[326569366,1715112646174,-640.88,0.00019726,2]
[326569367,1715112646184,-500.0,0.00019726,2]
[326569368,1715112646195,-500.0,0.00019726,2]
[326569369,1715112646205,-500.0,0.00019726,2]
[326569370,1715112646216,-524.91,0.00019726,2]
[326569371,1715112646227,-500.0,0.00019726,2]
[326569372,1715112646238,-500.0,0.00019726,2]
[326569373,1715112646248,-566.66,0.00019726,2]
[326569374,1715112646259,-500.0,0.00019726,2]
[326569375,1715112646269,-500.0,0.00019726,2]
[326569376,1715112646280,-500.0,0.00019726,2]
[326569377,1715112646291,-500.0,0.00019726,2]
[326569378,1715112646302,-550.61,0.00019726,2]
[326569379,1715112646313,-500.0,0.00019726,2]
[326569380,1715112646323,-500.0,0.00019726,2]
[326569381,1715112646334,-500.0,0.00019726,2]
[326569382,1715112646345,-500.0,0.00019726,2]
[326569383,1715112646356,-500.0,0.00019726,2]
[326569384,1715112646366,-500.0,0.00019726,2]
[326569385,1715112646377,-500.0,0.00019726,2]
[326569386,1715112646388,-500.0,0.00019726,2]
[326569387,1715112646399,-500.0,0.00019726,2]
[326569388,1715112646410,-500.0,0.00019726,2]
[326569389,1715112646420,-500.0,0.00019726,2]
[326569390,1715112646431,-500.0,0.00019726,2]
[326569391,1715112646442,-746.34,0.00019726,2]
[326569392,1715112646452,-759.28,0.00019726,2]
[326569393,1715112646463,-526.64,0.00019726,2]
[326569394,1715112646473,-500.0,0.00019726,2]
[326569395,1715112646484,-518.71,0.00019726,2]
[326569396,1715112646494,-500.0,0.00019726,2]
[326569397,1715112646505,-500.0,0.00019726,2]
[326569398,1715112646517,-500.0,0.00019726,2]
[326569399,1715112646527,-500.0,0.00019726,2]
[326569400,1715112646538,-500.0,0.00019726,2]
[326569401,1715112646549,-500.0,0.00019726,2]
[326569402,1715112646560,-500.0,0.00019726,2]
[326569403,1715112646571,-574.9,0.00019726,2]
[326569404,1715112646582,-500.0,0.00019726,2]
[326569405,1715112646592,-500.0,0.00019726,2]
[326569406,1715112646603,-500.0,0.00019726,2]
[326569407,1715112646615,-500.0,0.00019726,2]
[326569408,1715112646625,-500.0,0.00019726,2]
[326569409,1715112646636,-500.0,0.00019726,2]
[326569410,1715112646647,-500.0,0.00019726,2]
[326569411,1715112646657,-500.0,0.00019726,2]
[326569412,1715112646667,-500.0,0.00019726,2]
[326569413,1715112646678,-655.12,0.00019726,2]
[326569414,1715112646692,-500.0,0.00019726,2]
[326569415,1715112646703,-500.0,0.00019726,2]
[326569416,1715112646713,-260.50637279,0.00019726,2]
[326569417,1715112646723,-500.0,0.00019726,2]
[326569418,1715112646734,-500.0,0.00019726,2]
[326569419,1715112646745,-8535.41,0.00019726,2]
[326569420,1715112646756,-551.21,0.00019726,2]
[326569421,1715112646769,-500.0,0.00019726,2]
[326569422,1715112646780,-500.0,0.00019726,2]
[326569423,1715112646790,-500.0,0.00019726,2]
[326569424,1715112646802,-635.46,0.00019726,2]
[326569425,1715112646813,-500.0,0.00019726,2]
[326569426,1715112646824,-500.0,0.00019726,2]
[326569427,1715112646835,-817.37,0.00019726,2]
[326569428,1715112646849,-500.0,0.00019726,2]
[326569429,1715112646860,-500.0,0.00019726,2]
[326569430,1715112646870,-741.95,0.00019726,2]
[326569431,1715112646881,-538.91,0.00019726,2]
[326569432,1715112646892,-500.0,0.00019726,2]
[326569433,1715112646902,-500.0,0.00019726,2]
[326569434,1715112646912,-500.0,0.00019726,2]
[326569435,1715112646923,-500.0,0.00019726,2]
[326569436,1715112646934,-596.87,0.00019726,2]
[326569437,1715112646945,-275.23461359,0.00019726,2]
[326569438,1715112646956,-563.45,0.00019726,2]
[326569439,1715112646967,-500.0,0.00019726,2]
[326569440,1715112646977,-500.0,0.00019726,2]
[326569441,1715112646988,-500.0,0.00019726,2]
[326569442,1715112646998,-500.0,0.00019726,2]
[326569443,1715112647009,-1859.16,0.00019726,2]
[326569444,1715112647019,-500.0,0.00019726,2]
[326569445,1715112647030,-634.64,0.00019726,2]
[326569446,1715112647040,-1721.19,0.00019726,2]
[326569447,1715112647051,-500.0,0.00019726,2]
[326569448,1715112647061,-500.0,0.00019726,2]
[326569449,1715112647072,-500.0,0.00019726,2]
[326569450,1715112647082,-500.0,0.00019726,2]
[326569451,1715112647092,-872.3,0.00019726,2]
[326569452,1715112647107,-500.0,0.00019726,2]
[326569453,1715112647117,-500.0,0.00019726,2]
[326569454,1715112647128,-750.53,0.00019726,2]
[326569455,1715112647139,-500.0,0.00019726,2]
[326569456,1715112647150,-1529.05,0.00019726,2]
[326569457,1715112647160,-161.31286976,0.00019726,2]
[326569458,1715112647171,-6040.75,0.00019726,2]
[326569459,1715112647181,-645.71,0.00019726,2]
[326569460,1715112647192,-4503.0,0.00019726,2]
[326569461,1715112647201,-525.81,0.00019726,2]
[326569462,1715112647211,-694.35,0.00019726,2]
[326569463,1715112647223,-500.0,0.00019726,2]
[326569464,1715112647233,-500.0,0.00019726,2]
[326569465,1715112647244,-500.0,0.00019726,2]
[326569466,1715112647254,-500.0,0.00019726,2]
[326569467,1715112647265,-930.74,0.00019726,2]
[326569468,1715112647276,-500.0,0.00019726,2]
[326569469,1715112647286,-1168.1,0.00019726,2]
[326569470,1715112647296,-609.75,0.00019726,2]
[326569471,1715112647307,-534.38,0.00019726,2]
[326569472,1715112647318,-588.75,0.00019726,2]
[326569473,1715112647328,-500.0,0.00019726,2]
[326569474,1715112647338,-730.48,0.00019726,2]
[326569481,1715112647582,-1340.08,0.00019726,2]
[326569482,1715112647593,-2009.72,0.00019726,2]
[326569483,1715112647604,-500.0,0.00019726,2]
[326569484,1715112647614,-1089.23,0.00019726,2]
[326569485,1715112647625,-500.0,0.00019726,2]
[326569486,1715112647635,-500.0,0.00019726,2]
[326569487,1715112647646,-500.0,0.00019726,2]
[326569488,1715112647657,-500.0,0.00019726,2]
[326569489,1715112647667,-500.0,0.00019726,2]
[326569490,1715112647678,-993.66,0.00019726,2]
[326569491,1715112647691,-500.0,0.00019726,2]
[326569492,1715112647702,-500.0,0.00019726,2]
[326569493,1715112647712,-527.74,0.00019726,2]
[326569494,1715112647723,-11756.49,0.00019726,2]
[326569495,1715112647734,-3722.54,0.00019726,2]
[326569496,1715112647744,-500.0,0.00019726,2]
[326569497,1715112647755,-500.0,0.00019726,2]
[326569498,1715112647766,-667.51,0.00019726,2]
[326569499,1715112647777,-500.0,0.00019726,2]
[326569500,1715112647788,-500.0,0.00019726,2]
[326569501,1715112647799,-774.83,0.00019726,2]
[326569502,1715112647809,-500.0,0.00019726,2]
[326569503,1715112647820,-1205.55,0.00019726,2]
[326569504,1715112647830,-934.07,0.00019726,2]
[326569505,1715112647840,-500.0,0.00019726,2]
[326569506,1715112647850,-1195.88,0.00019726,2]
[326569507,1715112647861,-748.59,0.00019726,2]
[326569508,1715112647872,-500.0,0.00019726,2]
[326569509,1715112647882,-491.69843459,0.00019726,2]
[326569510,1715112647892,-2150.59,0.00019726,2]
[326569511,1715112647903,-611.65,0.00019726,2]
[326569512,1715112647913,-500.0,0.00019726,2]
[326569513,1715112647923,-500.0,0.00019726,2]
[326569514,1715112647934,-866.75,0.00019726,2]
[326569515,1715112647944,-1537.83,0.00019726,2]
[326569516,1715112647955,-500.0,0.00019726,2]
[326569517,1715112647966,-500.0,0.00019726,2]
[326569518,1715112647976,-500.0,0.00019726,2]
[326569519,1715112647987,-1376.28,0.00019726,2]
[326569520,1715112647997,-646.73,0.00019726,2]
[326569521,1715112648009,-500.0,0.00019726,2]
[326569522,1715112648019,-500.0,0.00019726,2]
[326569523,1715112648029,-500.0,0.00019726,2]
[326569524,1715112648041,-500.0,0.00019726,2]
[326569525,1715112648051,-5743.86,0.00019726,2]
[326569526,1715112648062,-500.0,0.00019726,2]
[326569527,1715112648072,-2279.88,0.00019726,2]
[326569528,1715112648083,-847.41,0.00019726,2]
[326569529,1715112648093,-500.0,0.00019726,2]
[326569530,1715112648104,-612.85,0.00019726,2]
[326569531,1715112648115,-500.0,0.00019726,2]
[326569532,1715112648126,-896.21,0.00019726,2]
[326569533,1715112648136,-500.0,0.00019726,2]
[326569534,1715112648146,-500.0,0.00019726,2]
[326569535,1715112648156,-589.41,0.00019726,2]
[326569536,1715112648167,-500.0,0.00019726,2]
[326569537,1715112648177,-662.75,0.00019726,2]
[326569538,1715112648187,-788.25,0.00019726,2]
[326569539,1715112648197,-500.0,0.00019726,2]
[326569540,1715112648207,-646.27,0.00019726,2]
[326569541,1715112648217,-500.0,0.00019726,2]
[326569542,1715112648228,-629.25,0.00019726,2]
[326569543,1715112648237,-933.26,0.00019726,2]
[326569544,1715112648247,-500.0,0.00019726,2]
[326569545,1715112648258,-1846.43,0.00019726,2]
[326569546,1715112648268,-500.0,0.00019726,2]
[326569547,1715112648278,-500.0,0.00019726,2]
[326569548,1715112648288,-500.0,0.00019726,2]
[326569549,1715112648299,-500.0,0.00019726,2]
[326569550,1715112648309,-500.0,0.00019726,2]
[326569551,1715112648320,-500.0,0.00019726,2]
[326569552,1715112648330,-764.74,0.00019726,2]
[326569553,1715112648341,-1385.44,0.00019726,2]
[326569554,1715112648351,-500.0,0.00019726,2]
[326569555,1715112648362,-1518.55,0.00019726,2]
[326569556,1715112648372,-500.0,0.00019726,2]
[326569557,1715112648383,-500.0,0.00019726,2]
[326569558,1715112648393,-1534.29,0.00019726,2]
[326569559,1715112648403,-500.0,0.00019726,2]
[326569560,1715112648414,-500.0,0.00019726,2]
[326569561,1715112648424,-500.0,0.00019726,2]
[326569562,1715112648434,-500.0,0.00019726,2]
[326569563,1715112648444,-995.34,0.00019726,2]
[326569564,1715112648455,-500.0,0.00019726,2]
[326569565,1715112648465,-1796.45,0.00019726,2]
[326569566,1715112648476,-2482.04,0.00019726,2]
[326569567,1715112648487,-500.0,0.00019726,2]
[326569568,1715112648497,-500.0,0.00019726,2]
[326569569,1715112648507,-500.0,0.00019726,2]
[326569570,1715112648517,-1143.63,0.00019726,2]
[326569571,1715112648527,-500.0,0.00019726,2]
[326569572,1715112648538,-1253.68,0.00019726,2]
[326569573,1715112648548,-793.52,0.00019726,2]
[326569574,1715112648559,-790.82,0.00019726,2]
[326569575,1715112648569,-500.0,0.00019726,2]
[326569576,1715112648580,-821.22,0.00019726,2]
[326569577,1715112648591,-766.45,0.00019726,2]
[326569578,1715112648601,-500.0,0.00019726,2]
[326569579,1715112648611,-500.0,0.00019726,2]
[326569580,1715112648621,-1140.07,0.00019726,2]
[326569581,1715112648631,-2261.2,0.00019726,2]
[326569582,1715112648640,-699.33,0.00019726,2]
[326569583,1715112648651,-1639.33,0.00019726,2]
[326569584,1715112648661,-500.0,0.00019726,2]
[326569585,1715112648671,-708.47,0.00019726,2]
[326569586,1715112648684,-500.0,0.00019726,2]
[326569587,1715112648695,-500.0,0.00019726,2]
[326569588,1715112648705,-500.0,0.00019726,2]
[326569589,1715112648715,-7581.08,0.00019726,2]
[326569590,1715112648726,-500.0,0.00019726,2]
[326569591,1715112648737,-657.3,0.00019726,2]
[326569592,1715112648747,-1442.6,0.00019726,2]
[326569593,1715112648758,-500.0,0.00019726,2]
[326569594,1715112648769,-1570.85,0.00019726,2]
[326569595,1715112648779,-500.0,0.00019726,2]
[326569596,1715112648790,-952.83,0.00019726,2]
[326569597,1715112648800,-965.64,0.00019726,2]
[326569598,1715112648812,-500.0,0.00019726,2]
[326569599,1715112648822,-500.0,0.00019726,2]
[326569600,1715112648833,-500.0,0.00019726,2]
[326569601,1715112648843,-500.0,0.00019726,2]
[326569602,1715112648854,-500.0,0.00019726,2]
[326569603,1715112648863,-686.32,0.00019726,2]
[326569604,1715112648873,-701.99,0.00019726,2]
[326569605,1715112648883,-500.0,0.00019726,2]
[326569606,1715112648893,-1115.15,0.00019726,2]
[326569607,1715112648903,-1673.46,0.00019726,2]
[326569608,1715112648914,-500.0,0.00019726,2]
[326569609,1715112648925,-500.0,0.00019726,2]
[326569610,1715112648935,-771.11,0.00019726,2]
[326569611,1715112648945,-521.16,0.00019726,2]
[326569612,1715112648955,-628.86,0.00019726,2]
[326569613,1715112648965,-1036.35,0.00019726,2]
[326569614,1715112648976,-500.0,0.00019726,2]
[326569615,1715112648986,-756.07,0.00019726,2]
[326569616,1715112648997,-500.43,0.00019726,2]
[326569617,1715112649008,-651.67,0.00019726,2]
[326569618,1715112649018,-607.71,0.00019726,2]
[326569619,1715112649029,-616.16,0.00019726,2]
[326569620,1715112649039,-2812.26,0.00019726,2]
[326569621,1715112649050,-2456.97,0.00019726,2]
[326569622,1715112649060,-500.0,0.00019726,2]
[326569623,1715112649070,-500.0,0.00019726,2]
[326569624,1715112649081,-500.0,0.00019726,2]
[326569625,1715112649091,-914.95,0.00019726,2]
[326569626,1715112649103,-1095.21,0.00019726,2]
[326569627,1715112649119,-563.44,0.00019726,2]
[326569628,1715112649129,-1077.98,0.00019726,2]
[326569629,1715112649139,-984.26,0.00019726,2]
[326569630,1715112649150,-579.82,0.00019726,2]
[326569631,1715112649161,-1344.85,0.00019726,2]
[326569632,1715112649171,-756.02,0.00019726,2]
[326569633,1715112649182,-1888.78,0.00019726,2]
[326569634,1715112649192,-1990.06,0.00019726,2]
[326569635,1715112649202,-500.0,0.00019726,2]
[326569636,1715112649212,-696.89,0.00019726,2]
[326569637,1715112649223,-1476.96,0.00019726,2]
[326569638,1715112649233,-3186.51,0.00019726,2]
[326569639,1715112649244,-500.0,0.00019726,2]
[326569640,1715112649254,-737.67,0.00019726,2]
[326569641,1715112649265,-500.0,0.00019726,2]
[326569642,1715112649275,-2300.0,0.000198,7]
[326569643,1715112649286,-900.0,0.000198,7]
[326569644,1715112649298,-896.28847647,0.000198,2]
[326569645,1715112649308,-361.77678118,0.000198,2]
[326569646,1715112649318,-1000.0,0.0001984,2]
[326569647,1715112649329,-150.5,0.0001987,15]
[326569648,1715112649339,-150.5,0.0001988,15]
[326569649,1715112649350,-150.5,0.0001989,15]
[326569650,1715112649361,-235.66867217,0.0001989,7]
[326569651,1715112649371,-4561.55087712,0.000199,3]
[326569652,1715112649381,-197288.55663518,0.000199,5]
[326569653,1715112649404,-286257.00652173,0.000199,5]
[326569654,1715112649764,-115197.41274425,0.000199,5]
[326569655,1715112649777,-94120.82378235,0.000199,5]
[326569656,1715112650244,-718.88472299,0.000199,5]
[326569657,1715112650257,-163527.618349,0.000199,5]
[326569658,1715112650271,-16691.57198122,0.000199,5]
[326569659,1715112650283,-324654.4488658,0.000199,5]
[326569660,1715112650294,-151.0,0.000199,2]
[326569661,1715112650304,-3100.0,0.000199,7]
[326569663,1715112650315,-1200.0,0.000199,7]
[326569665,1715112650325,-197.19393563,0.000199,2]
[326569667,1715112650335,-840.78518253,0.00019944,2]
[326569669,1715112650346,-467.30596604,0.00019944,2]
[326569670,1715112650357,-4205.21598915,0.00019997,2]
[326569671,1715112650367,-445.28508739,0.00019998,2]
[326569672,1715112650377,-693.48,0.00019999,2]
[326569673,1715112650389,-800.0,0.0002,3]
[326569674,1715112650399,-500.0,0.0002,2]
[326569675,1715112650409,-500.0,0.0002,2]
[326569676,1715112650420,-500.0,0.0002,2]
[326569677,1715112650430,-500.0,0.0002,2]
[326569678,1715112650441,-500.0,0.0002,2]
[326569679,1715112650451,-500.0,0.0002,2]
[326569680,1715112650461,-500.0,0.0002,2]
[326569681,1715112650472,-500.0,0.0002,2]
[326569682,1715112650482,-500.0,0.0002,2]
[326569683,1715112650492,-500.0,0.0002,2]
[326569684,1715112650503,-306.79897355,0.0002,2]
[326569685,1715112650514,-11.04585683,0.0002,2]
[326569686,1715112650591,-488.95414317,0.0002,2]
[326569687,1715112650602,-448.19688336,0.0002,2]
[326569688,1715112650615,-500.0,0.0002,2]
[326569689,1715112650627,-500.0,0.0002,2]
[326569690,1715112650640,-500.0,0.0002,2]
[326569691,1715112650653,-500.0,0.0002,2]
[326569692,1715112650665,-500.0,0.0002,2]
[326569693,1715112650678,-500.0,0.0002,2]
[326569694,1715112650695,-500.0,0.0002,2]
[326569695,1715112650706,-518.2,0.0002,2]
[326569696,1715112650717,-500.0,0.0002,2]
[326569697,1715112650731,-500.0,0.0002,2]
[326569698,1715112650743,-500.0,0.0002,2]
[326569699,1715112650756,-500.0,0.0002,2]
[326569700,1715112650769,-500.0,0.0002,2]
[326569701,1715112650780,-500.0,0.0002,2]
[326569702,1715112650793,-500.0,0.0002,2]
[326569703,1715112650806,-500.0,0.0002,2]
[326569704,1715112650818,-500.0,0.0002,2]
[326569705,1715112650830,-500.0,0.0002,2]
[326569706,1715112650842,-383.42167521,0.0002,2]
[326569707,1715112650856,-500.0,0.0002,2]
[326569708,1715112650871,-500.0,0.0002,2]
[326569709,1715112650883,-500.0,0.0002,2]
[326569710,1715112650896,-500.0,0.0002,2]
[326569711,1715112650908,-649.19961744,0.0002,2]
[326569712,1715112650920,-500.0,0.0002,2]
[326569713,1715112650932,-583.94,0.0002,2]
[326569714,1715112650943,-515.38,0.0002,2]
[326569715,1715112650955,-500.0,0.0002,2]
[326569716,1715112650967,-305.68066081,0.0002,2]
[326569717,1715112650984,-194.31933919,0.0002,2]
[326569718,1715112650997,-500.0,0.0002,2]
[326569719,1715112651010,-500.0,0.0002,2]
[326569720,1715112651021,-500.0,0.0002,2]
[326569721,1715112651033,-500.0,0.0002,2]
[326569722,1715112651045,-500.0,0.0002,2]
[326569723,1715112651056,-500.0,0.0002,2]
[326569724,1715112651067,-500.0,0.0002,2]
[326569725,1715112651078,-500.0,0.0002,2]
[326569726,1715112651090,-442.583085,0.0002,2]
[326569727,1715112651102,-545.16,0.0002,2]
[326569728,1715112651118,-500.0,0.0002,2]
[326569729,1715112651131,-500.0,0.0002,2]
[326569730,1715112651144,-500.0,0.0002,2]
[326569731,1715112651156,-500.0,0.0002,2]
[326569732,1715112651169,-264.53757581,0.0002,2]
[326569733,1715112651184,-235.46242419,0.0002,2]
[326569734,1715112651195,-78.52916867,0.0002,2]
[326569735,1715112651211,-421.47083133,0.0002,2]
[326569736,1715112651223,-500.0,0.0002,2]
[326569737,1715112651236,-278.52916867,0.0002,2]
[326569738,1715112651252,-221.47083133,0.0002,2]
[326569739,1715112651264,-500.0,0.0002,2]
[326569740,1715112651276,-227.78916869,0.0002,2]
[326569741,1715112651290,-272.21083131,0.0002,2]
[326569742,1715112651301,-500.0,0.0002,2]
[326569743,1715112651312,-591.55,0.0002,2]
[326569744,1715112651323,-500.0,0.0002,2]
[326569745,1715112651334,-500.0,0.0002,2]
[326569746,1715112651346,-500.0,0.0002,2]
[326569747,1715112651358,-303.59425486,0.0002,2]
[326569748,1715112651372,-196.40574514,0.0002,2]
[326569749,1715112651384,-500.0,0.0002,2]
[326569750,1715112651396,-500.0,0.0002,2]
[326569751,1715112651409,-500.0,0.0002,2]
[326569752,1715112651422,-234.53025486,0.0002,2]
[326569753,1715112651436,-265.46974514,0.0002,2]
[326569754,1715112651446,-553.89,0.0002,2]
[326569755,1715112651458,-500.0,0.0002,2]
[326569756,1715112651470,-500.0,0.0002,2]
[326569757,1715112651482,-500.0,0.0002,2]
[326569758,1715112651493,-500.0,0.0002,2]
[326569759,1715112651505,-500.0,0.0002,2]
[326569760,1715112651516,-564.56,0.0002,2]
[326569761,1715112651528,-500.0,0.0002,2]
[326569762,1715112651539,-500.0,0.0002,2]
[326569763,1715112651550,-693.75,0.0002,2]
[326569764,1715112651561,-500.0,0.0002,2]
[326569765,1715112651572,-306.11530563,0.0002,2]
[326569766,1715112651584,-500.0,0.0002,2]
[326569767,1715112651595,-322.22,0.0002,2]
[326569768,1715112651610,-538.03,0.0002,2]
[326569769,1715112651621,-500.0,0.0002,2]
[326569770,1715112651632,-500.0,0.0002,2]
[326569771,1715112651643,-500.0,0.0002,2]
[326569772,1715112651655,-592.34,0.0002,2]
[326569773,1715112651666,-500.0,0.0002,2]
[326569774,1715112651678,-444.70502449,0.0002,2]
[326569777,1715113118191,-600.0,9.433e-05,2]
[326569778,1715113284800,-3279.84855016,9.322e-05,2]
[326569779,1715113284823,-157.50965258,9.322e-05,2]
[326569780,1715113284846,-622.64179726,9.322e-05,2]
[326569781,1715113288379,-363.81807592,9.321e-05,2]
[326569782,1715113288402,-429.4178453,9.322e-05,2]
[326569783,1715113288425,-3206.76407878,9.323e-05,2]
[326569784,1715113306790,-265.91132073,9.321e-05,2]
[326569785,1715113306813,-1077.0,9.321e-05,2]
[326569786,1715113306836,-2597.08867927,9.322e-05,2]
[326569787,1715113316773,-600.0,9.321e-05,2]
[326569789,1715113668531,4532.200503,8.985e-05,2]
[326569790,1715113719092,-538.81220772,9.026e-05,2]
[326569791,1715113719114,-61.18779228,9.027e-05,2]
[326569792,1715113833050,-450.037073,9.018e-05,2]
[326569793,1715113833062,-308.14008547,9.018e-05,2]
[326569794,1715113833074,-196.48300986,9.018e-05,2]
[326569795,1715113833083,-262.68990001,9.019e-05,2]
[326569797,1715113833093,-200.64558336,9.019e-05,2]
[326569798,1715113833102,-3386.91872771,9.019e-05,2]
[326569799,1715113833116,-2952.77,9.019e-05,2]
[326569800,1715113833206,-4109.9407676,9.019e-05,2]
[326569801,1715113833216,-3004.89985123,9.02e-05,2]
[326569802,1715113833225,-2325.27290029,9.02e-05,2]
[326569803,1715113833237,-782.5278252,9.02e-05,2]
[326569804,1715113833246,-781.91615108,9.021e-05,2]
[326569805,1715113833255,-150.0,9.021e-05,2]
[326569806,1715113833266,-1052.05964256,9.022e-05,2]
[326569807,1715113833276,-8358.14832076,9.022e-05,2]
[326569808,1715113833285,-19468.48623103,9.024e-05,2]
[326569809,1715113833295,-155.0,9.029e-05,2]
[326569810,1715113833304,-600.0,9.03e-05,2]
[326569811,1715113833313,-200.0,9.089e-05,2]
[326569812,1715113833322,-264.82133589,9.089e-05,2]
[326569813,1715113833332,-10973.05,9.125e-05,2]
[326569814,1715113833341,-1852.42,9.192e-05,2]
[326569815,1715113833350,-253.50080884,9.256e-05,2]
[326569816,1715113833360,-1393.04609396,9.257e-05,2]
[326569817,1715113833370,-24241.65297261,9.258e-05,2]
[326569818,1715113833379,-317.4316254,9.668e-05,2]
[326569819,1715113833388,-150.99,9.67e-05,2]
[326569820,1715113833398,-6850.58,9.67e-05,2]
[326569821,1715113833407,-301.98,9.67e-05,2]
[326569822,1715113833417,-1098.77,9.67e-05,2]
[326569823,1715113833427,-299.99,9.67e-05,2]
[326569824,1715113833436,-499.99,9.67e-05,2]
[326569825,1715113833446,-839.42,9.67e-05,2]
[326569826,1715113833456,-38764.61,9.67e-05,2]
[326569827,1715113833465,-150.99,9.67e-05,2]
[326569828,1715113833475,-361.66236523,9.7e-05,2]
[326569829,1715113833485,-282.67,9.7e-05,2]
[326569830,1715113833495,-439.98,9.713e-05,2]
[326569831,1715113833504,-250.0,9.771e-05,2]
[326569832,1715113833514,-11852.89,9.879e-05,2]
[326569833,1715113833526,-210.0,9.923e-05,2]
[326569834,1715113833536,-711.54040194,0.0001,2]
[326569835,1715113833546,-1540.42461951,0.00010451,2]
[326569836,1715113833555,-614.77,0.00010493,2]
[326569837,1715113833565,-227679.09219193,0.0001055,2]
[326569838,1715113833577,-1386.56964087,0.0001055,2]
[326569839,1715113833588,-888.36762147,0.0001055,2]
[326569840,1715113833601,-1987.29412416,0.0001055,2]
[326569841,1715113833612,-6127.228,0.0001055,2]
[326569842,1715113833628,-4822.69,0.0001055,2]
[326569843,1715113833639,-63402.57999997,0.0001055,2]
[326569844,1715113833651,-499.72856,0.0001055,2]
[326569845,1715113833662,-13440.13964338,0.0001055,2]
[326569846,1715113833674,-24202.18642409,0.0001055,2]
[326569847,1715113833685,-400.0,0.0001055,2]
[326569849,1715113838135,-342458.38213985,0.0001055,2]
[326569853,1715113838146,-150.99,0.00010551,2]
[326569856,1715113838158,-446.59,0.00010571,2]
[326569858,1715113838169,-446.59,0.000106,2]
[326569860,1715113838180,-446.59,0.00010629,2]
[326569861,1715113838191,-446.59,0.00010658,2]
[326569862,1715113838202,-446.59,0.00010687,2]
[326569863,1715113838213,-446.59,0.00010716,2]
[326569864,1715113838223,-446.59,0.00010745,2]
[326569865,1715113838235,-446.59,0.00010774,2]
[326569866,1715113838245,-446.59,0.00010803,2]
[326569867,1715113838256,-446.59,0.00010832,2]